bitfinex/quotes_BTCUSD_20250328
["timestamp","ask_amount","ask_price","bid_price","bid_amount"]
[1743181660540,0.011916,83918.0,83911.0,0.0001688]
[1743181660759,0.238333,83916.0,83911.0,0.0001688]
[1743181660962,0.238336,83915.0,83911.0,0.0001688]
[1743181661162,0.238342,83913.0,83911.0,0.0001688]
[1743181661368,0.011916,83915.0,83911.0,0.0001688]
[1743181661611,0.250249,83916.0,83911.0,0.0001688]
[1743181661803,0.238338,83915.0,83911.0,0.0001688]
[1743181662044,0.238341,83914.0,83911.0,0.0001688]
[1743181662600,0.238342,83913.0,83911.0,0.0001688]
[1743181662802,0.238344,83912.0,83911.0,0.0001688]
[1743181663002,0.25026,83914.0,83911.0,0.0001688]
[1743181663448,0.238344,83912.0,83911.0,0.0041688]
[1743181663781,0.238344,83912.0,83620.0,60.0]
[1743181663782,0.011917,83907.0,83902.0,0.01454085]
[1743181663988,0.238364,83906.0,83900.0,0.238378]
[1743181664194,0.237564,83905.0,83901.0,0.01454085]
[1743181664577,0.237564,83905.0,83900.0,0.011917]
[1743181664712,0.250294,83901.0,83892.0,0.01192]
[1743181664913,0.238367,83904.0,83902.0,0.004]
[1743181665160,0.23837,83903.0,83902.0,0.004]
[1743181665396,0.23837,83903.0,83892.0,0.02377916]
[1743181665397,0.011918,83904.0,83893.0,0.01454085]
[1743181665593,0.238378,83901.0,83894.0,0.2387308]
[1743181665802,0.238381,83900.0,83894.0,0.0003378]
[1743181666006,0.01074252,83899.0,83894.0,0.0003378]
[1743181666158,0.01074252,83899.0,83898.0,0.011919]
[1743181666356,0.238357,83908.0,83901.0,0.238373]
[1743181666606,0.001,83905.0,83900.0,0.250296]
[1743181666980,0.13812,83907.0,83902.0,0.238373]
[1743181667202,0.13812,83907.0,83903.0,0.237369]
[1743181667398,0.02381803,83904.0,83903.0,0.236369]
[1743181668253,0.02381803,83904.0,83901.0,0.250293]
[1743181668793,0.02381803,83904.0,83903.0,0.23837]
[1743181669155,0.001,83907.0,83906.0,0.238361]
[1743181669333,0.13912,83907.0,83906.0,0.250279]
[1743181669527,0.13812,83907.0,83906.0,0.250279]
[1743181669730,0.13812,83907.0,83906.0,0.249279]
[1743181670149,0.02437505,83911.0,83906.0,0.249279]
[1743181670150,1.19967802,83918.0,83917.0,0.250246]
[1743181670363,0.15682014,83918.0,83917.0,0.250246]
[1743181670557,0.15682014,83918.0,83917.0,0.249246]
[1743181670804,0.15682014,83918.0,83917.0,0.26378685]
[1743181673031,0.15682014,83918.0,83917.0,0.27594725]
[1743181673032,0.01870014,83918.0,83917.0,0.27594725]
[1743181673230,0.000338,83947.0,83922.0,0.250231]
[1743181673434,0.13841032,83923.0,83922.0,0.26477185]
[1743181674383,0.00029032,83923.0,83922.0,0.72972869]
[1743181674704,0.13841032,83923.0,83922.0,0.73072869]
[1743181674829,0.13841032,83923.0,83922.0,0.72972869]
[1743181675467,3.2e-07,83923.0,83922.0,0.72972869]
[1743181675668,0.13812032,83923.0,83922.0,1.16722869]
[1743181676227,0.13812032,83923.0,83922.0,1.16622869]
[1743181676406,0.13812032,83923.0,83922.0,1.17122869]
[1743181676784,0.13812032,83923.0,83922.0,1.17622869]
[1743181676961,0.13812032,83923.0,83922.0,1.18527505]
[1743181677165,0.13812032,83923.0,83922.0,1.18527094]
[1743181677368,3.2e-07,83923.0,83922.0,1.18027094]
[1743181677570,0.13808032,83923.0,83922.0,1.18027094]
[1743181677771,0.13808032,83923.0,83922.0,1.18627094]
[1743181677976,0.15677388,83923.0,83922.0,1.18627094]
[1743181678181,0.15677388,83923.0,83922.0,1.18597094]
[1743181678805,0.01795988,83923.0,83922.0,1.18597094]
[1743181679213,0.01795988,83923.0,83922.0,1.24905954]
[1743181679414,0.01795988,83923.0,83922.0,1.18597094]
[1743181680027,0.15603988,83923.0,83922.0,1.18597094]
[1743181680455,0.13808088,83923.0,83922.0,1.18597094]
[1743181680652,0.13808088,83923.0,83922.0,1.26767094]
[1743181680857,0.13808,83923.0,83922.0,1.26767094]
[1743181682385,0.13808,83923.0,83922.0,1.30349294]
[1743181682590,0.13808,83923.0,83922.0,1.29249294]
[1743181682790,0.13808,83923.0,83922.0,1.29849294]
[1743181682994,0.13808,83923.0,83922.0,1.30449294]
[1743181684216,0.13808,83923.0,83922.0,1.21779374]
[1743181684472,0.13808,83923.0,83922.0,1.17226254]
[1743181684675,0.1384176,83923.0,83922.0,1.00941769]
[1743181685296,0.1384176,83923.0,83922.0,1.02395854]
[1743181686610,0.1384176,83923.0,83922.0,0.98813654]
[1743181687254,0.1384176,83923.0,83922.0,0.97613654]
[1743181687474,0.1384176,83923.0,83922.0,1.11539418]
[1743181687699,0.1384176,83923.0,83922.0,1.12639418]
[1743181688321,0.1384176,83923.0,83922.0,0.98713654]
[1743181696551,0.1384176,83923.0,83922.0,0.68713654]
[1743181699759,0.5170456,83923.0,83922.0,0.0001688]
[1743181699963,1.80275472,83923.0,83922.0,0.0001688]
[1743181700167,1.80275472,83923.0,83922.0,0.0101688]
[1743181700573,1.80275472,83923.0,83922.0,0.0041688]
[1743181701479,1.70826981,83923.0,83922.0,0.0041688]
[1743181701615,1.70826981,83923.0,83922.0,0.0001688]
[1743181702036,1.70926981,83923.0,83922.0,0.0001688]
[1743181702574,1.45644001,83923.0,83922.0,0.0001688]
[1743181703336,0.28737713,83923.0,83922.0,0.0001688]
[1743181703535,0.52569013,83923.0,83922.0,0.0001688]
[1743181703769,0.27546213,83923.0,83922.0,0.0001688]
[1743181704375,0.29884287,83923.0,83922.0,0.0001688]
[1743181704585,0.31075787,83923.0,83922.0,0.0001688]
[1743181704766,0.54907087,83923.0,83922.0,0.0001688]
[1743181704970,0.53715587,83923.0,83922.0,0.0001688]
[1743181705639,0.54907087,83923.0,83922.0,0.0001688]
[1743181709641,0.66332851,83923.0,83922.0,0.0001688]
[1743181709795,0.96332851,83923.0,83922.0,0.0001688]
[1743181711569,0.84907087,83923.0,83922.0,0.0001688]
[1743181712321,0.84903087,83923.0,83922.0,0.0001688]
[1743181717730,0.71099087,83923.0,83922.0,0.0001688]
[1743181717900,0.84903087,83923.0,83922.0,0.0001688]
[1743181726826,0.84803087,83923.0,83922.0,0.0001688]
[1743181727027,0.96528851,83923.0,83922.0,0.0001688]
[1743181727674,0.66528851,83923.0,83922.0,0.0001688]
[1743181729361,0.68398818,83923.0,83922.0,0.0001688]
[1743181729582,0.68298818,83923.0,83922.0,0.0001688]
[1743181729793,0.66228851,83923.0,83922.0,0.0001688]
[1743181730004,0.66428851,83923.0,83922.0,0.0001688]
[1743181730204,0.66828851,83923.0,83922.0,0.0001688]
[1743181730816,0.55403087,83923.0,83922.0,0.0001688]
[1743181731018,0.41599087,83923.0,83922.0,0.0001688]
[1743181731229,0.55403087,83923.0,83922.0,0.0001688]
[1743181731434,0.50553087,83923.0,83922.0,0.0001688]
[1743181732229,0.50353087,83923.0,83922.0,0.0001688]
[1743181732434,0.50553087,83923.0,83922.0,0.0001688]
[1743181732964,0.50353087,83923.0,83922.0,0.0001688]
[1743181733184,0.42363087,83923.0,83922.0,0.0001688]
[1743181733320,0.42463087,83923.0,83922.0,0.0001688]
[1743181733523,0.42063087,83923.0,83922.0,0.0001688]
[1743181733974,0.42263087,83923.0,83922.0,0.0001688]
[1743181734585,0.42463087,83923.0,83922.0,0.0001688]
[1743181736296,0.55758726,83923.0,83922.0,0.0001688]
[1743181736497,0.63808726,83923.0,83922.0,0.0001688]
[1743181737524,0.61938851,83923.0,83922.0,0.0001688]
[1743181738110,0.50513087,83923.0,83922.0,0.0001688]
[1743181740576,0.36709087,83923.0,83922.0,0.0001688]
[1743181740779,0.50513087,83923.0,83922.0,0.0001688]
[1743181742858,0.50741848,83923.0,83922.0,0.0001688]
[1743181744954,0.03865048,83923.0,83922.0,0.0120838]
[1743181745195,0.41496348,83923.0,83922.0,0.0001688]
[1743181745314,0.44557715,83923.0,83922.0,0.0001688]
[1743181745519,0.42687848,83923.0,83922.0,0.0001688]
[1743181746135,0.54113612,83923.0,83922.0,0.0001688]
[1743181746335,0.54013612,83923.0,83922.0,0.0001688]
[1743181746543,0.54113612,83923.0,83922.0,0.0001688]
[1743181747147,0.5588346,83923.0,83922.0,0.0001688]
[1743181747381,0.5548346,83923.0,83922.0,0.0001688]
[1743181747543,0.53713612,83923.0,83922.0,0.0001688]
[1743181747751,0.53813612,83923.0,83922.0,0.0001688]
[1743181748131,0.42587848,83923.0,83922.0,0.0001688]
[1743181748361,0.28787848,83923.0,83922.0,0.0001688]
[1743181748549,0.17565048,83923.0,83922.0,0.2503998]
[1743181749144,0.19434785,83923.0,83922.0,0.2503998]
[1743181749363,0.19334785,83923.0,83922.0,0.2384848]
[1743181749549,0.17465048,83923.0,83922.0,0.2503998]
[1743181749915,0.17465048,83923.0,83922.0,0.0001688]
[1743181749916,0.41296348,83923.0,83922.0,0.0001688]
[1743181750616,0.42487848,83923.0,83922.0,0.0001688]
[1743181751083,0.42187848,83923.0,83922.0,0.0001688]
[1743181751205,0.44057638,83923.0,83922.0,0.0001688]
[1743181751916,0.42187848,83923.0,83922.0,0.0001688]
[1743181752150,0.53613612,83923.0,83922.0,0.0001688]
[1743181752383,0.42187848,83923.0,83922.0,0.0001688]
[1743181753006,0.40996348,83923.0,83922.0,0.0001688]
[1743181753632,0.42187848,83923.0,83922.0,0.0001688]
[1743181754237,0.49797848,83923.0,83922.0,0.0001688]
[1743181754658,0.56617683,83923.0,83922.0,0.0001688]
[1743181754860,0.63914787,83923.0,83922.0,0.0001688]
[1743181755057,0.62044952,83923.0,83922.0,0.0001688]
[1743181755259,0.92044952,83923.0,83922.0,0.0001688]
[1743181755883,0.92244952,83923.0,83922.0,0.0001688]
[1743181757070,0.84947848,83923.0,83922.0,0.0001688]
[1743181758068,0.79997848,83923.0,83922.0,0.0001688]
[1743181758610,0.66197848,83923.0,83922.0,0.0001688]
[1743181758809,0.72387848,83923.0,83922.0,0.0001688]
[1743181759073,0.03565048,83923.0,83922.0,0.0001688]
[1743181759271,0.17365048,83923.0,83922.0,0.2384848]
[1743181759570,0.17365048,83923.0,83922.0,0.2503998]
[1743181759902,0.15026974,83923.0,83922.0,0.2503998]
[1743181760104,0.15026974,83923.0,83922.0,0.0001688]
[1743181760311,0.14826974,83923.0,83922.0,0.2503998]
[1743181760594,0.01126974,83923.0,83922.0,0.26494065]
[1743181760723,0.14926974,83923.0,83922.0,0.26494065]
[1743181760923,0.1383376,83923.0,83922.0,0.31124065]
[1743181762495,0.1383376,83923.0,83922.0,0.31224065]
[1743181763179,0.1383376,83923.0,83922.0,0.26594065]
[1743181764067,0.1382976,83923.0,83922.0,0.26594065]
[1743181766410,0.1382976,83923.0,83922.0,0.30177065]
[1743181769326,0.3766106,83923.0,83922.0,0.0369988]
[1743181769530,0.1382976,83923.0,83922.0,0.0369988]
[1743181769731,0.14663224,83923.0,83922.0,0.2753148]
[1743181769958,0.14663224,83923.0,83922.0,0.2872298]
[1743181770917,0.1382976,83923.0,83922.0,0.0369988]
[1743181771116,0.39686024,83923.0,83922.0,0.0369988]
[1743181771320,0.38494524,83923.0,83922.0,0.0011688]
[1743181772329,0.39686024,83923.0,83922.0,0.0011688]
[1743181775005,0.52426024,83923.0,83922.0,0.0011688]
[1743181776037,0.82426024,83923.0,83922.0,0.0011688]
[1743181776535,0.82426024,83923.0,83922.0,0.0001688]
[1743181776942,0.82526024,83923.0,83922.0,0.0001688]
[1743181778208,0.82726024,83923.0,83922.0,0.0001688]
[1743181778738,0.94151788,83923.0,83922.0,0.0001688]
[1743181779088,0.82726024,83923.0,83922.0,0.0001688]
[1743181781401,0.69986024,83923.0,83922.0,0.0001688]
[1743181782658,0.56190024,83923.0,83922.0,0.0001688]
[1743181782860,0.69986024,83923.0,83922.0,0.0001688]
[1743181785047,0.77796024,83923.0,83922.0,0.0001688]
[1743181785454,0.89221788,83923.0,83922.0,0.0001688]
[1743181785880,0.94051788,83923.0,83922.0,0.0001688]
[1743181786304,0.95921785,83923.0,83922.0,0.0001688]
[1743181786504,0.94051788,83923.0,83922.0,0.0001688]
[1743181787001,0.93751788,83923.0,83922.0,0.0001688]
[1743181787206,0.94251788,83923.0,83922.0,0.0001688]
[1743181787642,0.80455788,83923.0,83922.0,0.0001688]
[1743181787839,0.94251788,83923.0,83922.0,0.0001688]
[1743181788139,0.82826024,83923.0,83922.0,0.0001688]
[1743181788315,0.83326024,83923.0,83922.0,0.0001688]
[1743181788520,0.69530024,83923.0,83922.0,0.0001688]
[1743181788700,0.83326024,83923.0,83922.0,0.0001688]
[1743181789127,0.78496024,83923.0,83922.0,0.0001688]
[1743181789530,0.80366015,83923.0,83922.0,0.0001688]
[1743181789891,0.89421788,83923.0,83922.0,0.0001688]
[1743181790309,0.89921788,83923.0,83922.0,0.0001688]
[1743181790748,0.89421788,83923.0,83922.0,0.0001688]
[1743181791047,0.89721788,83923.0,83922.0,0.0001688]
[1743181791208,0.78296024,83923.0,83922.0,0.0001688]
[1743181791422,0.77796024,83923.0,83922.0,0.0001688]
[1743181791636,0.64000024,83923.0,83922.0,0.0001688]
[1743181791838,0.69986024,83923.0,83922.0,0.0001688]
[1743181792934,0.69686024,83923.0,83922.0,0.0001688]
[1743181793141,0.70486024,83923.0,83922.0,0.0001688]
[1743181793358,0.70086024,83923.0,83922.0,0.0001688]
[1743181793774,0.70386024,83923.0,83922.0,0.0001688]
[1743181794617,0.69986024,83923.0,83922.0,0.0001688]
[1743181794936,0.70286024,83923.0,83922.0,0.0001688]
[1743181796487,0.78277493,83923.0,83922.0,0.0001688]
[1743181796906,0.64481493,83923.0,83922.0,0.0001688]
[1743181797145,0.78277493,83923.0,83922.0,0.0001688]
[1743181798558,0.85807493,83923.0,83922.0,0.0001688]
[1743181798782,0.90537493,83923.0,83922.0,0.0001688]
[1743181800524,0.82546024,83923.0,83922.0,0.0001688]
[1743181803008,1.24286024,83923.0,83922.0,0.0001688]
[1743181810790,1.39286024,83923.0,83922.0,8e-07]
[1743181810992,3.55435572,83923.0,83922.0,8e-07]
[1743181811195,1.57222136,83923.0,83922.0,8e-07]
[1743181811341,1.54032587,83923.0,83922.0,8e-07]
[1743181811508,1.50711788,83923.0,83922.0,8e-07]
[1743181811711,1.50411788,83923.0,83922.0,8e-07]
[1743181812163,1.51011788,83923.0,83922.0,8e-07]
[1743181812378,1.51007788,83923.0,83922.0,8e-07]
[1743181812579,1.50707788,83923.0,83922.0,8e-07]
[1743181812978,1.51207788,83923.0,83922.0,8e-07]
[1743181816559,1.53077903,83923.0,83922.0,8e-07]
[1743181816773,1.51207788,83923.0,83922.0,8e-07]
[1743181820009,1.51207788,83923.0,83900.0,0.0001689]
[1743181820010,0.250294,83901.0,83900.0,0.0001689]
[1743181820213,1.56919188,83901.0,83900.0,0.0001689]
[1743181820406,1.57599302,83901.0,83900.0,0.0001689]
[1743181821133,1.59469469,83901.0,83900.0,0.0001689]
[1743181822057,1.58277669,83901.0,83900.0,0.0001689]
[1743181822336,1.45677469,83901.0,83900.0,0.0001689]
[1743181822547,1.59469469,83901.0,83900.0,0.0001689]
[1743181822676,1.3426682,83901.0,83900.0,7.204e-05]
[1743181822879,1.2047482,83901.0,83900.0,0.23845104]
[1743181823121,1.2047482,83901.0,83900.0,0.25036904]
[1743181823503,1.3426682,83901.0,83900.0,0.25036904]
[1743181823697,1.2047482,83901.0,83900.0,0.25036904]
[1743181823935,0.14298865,83901.0,83900.0,0.25036904]
[1743181824294,0.13792,83901.0,83900.0,7.204e-05]
[1743181824570,0.14298865,83901.0,83900.0,0.25036904]
[1743181824916,1.18097788,83910.0,83909.0,0.238353]
[1743181825087,1.31889788,83910.0,83909.0,0.238353]
[1743181825288,1.56231753,83910.0,83907.0,0.238358]
[1743181825933,0.238353,83909.0,83905.0,0.238362]
[1743181826348,1.18097788,83920.0,83916.0,0.238331]
[1743181826544,1.18097788,83920.0,83915.0,0.238336]
[1743181826545,0.02360985,83917.0,83915.0,0.238336]
[1743181826707,0.02360985,83917.0,83914.0,0.059316]
[1743181826708,0.238336,83915.0,83914.0,0.06094085]
[1743181826912,0.250252,83915.0,83914.0,0.06094085]
[1743181827322,0.250252,83915.0,83914.0,0.0464]
[1743181827766,0.26194085,83917.0,83914.0,0.284738]
[1743181827966,0.238333,83916.0,83914.0,0.0464]
[1743181828128,0.238336,83915.0,83914.0,0.0464]
[1743181828468,0.002,83915.0,83914.0,0.0464]
[1743181828854,0.240336,83915.0,83914.0,0.0464]
[1743181829251,0.240336,83915.0,83906.0,0.250271]
[1743181829252,0.250265,83911.0,83906.0,0.250271]
[1743181829470,0.238348,83911.0,83909.0,0.238353]
[1743181829678,0.011917,83912.0,83909.0,0.238353]
[1743181829870,0.238347,83913.0,83909.0,0.238353]
[1743181830077,0.238347,83913.0,83905.0,0.238364]
[1743181830078,0.238357,83908.0,83905.0,0.238364]
[1743181830277,0.238357,83908.0,83900.0,7.204e-05]
[1743181830278,0.011918,83904.0,83900.0,7.204e-05]
[1743181830457,0.13792,83903.0,83900.0,0.23844804]
[1743181830657,0.13792,83903.0,83901.0,0.238373]
[1743181830900,0.376291,83903.0,83900.0,7.204e-05]
[1743181831103,0.238374,83902.0,83900.0,7.204e-05]
[1743181831279,0.00511265,83901.0,83900.0,7.204e-05]
[1743181831454,0.00643846,83901.0,83900.0,7.204e-05]
[1743181831673,0.00643846,83901.0,83900.0,0.00107204]
[1743181832033,0.00643846,83901.0,83900.0,0.25136904]
[1743181832245,0.00643846,83901.0,83900.0,0.25036904]
[1743181832418,0.00643846,83901.0,83900.0,0.25236904]
[1743181832559,0.00643846,83901.0,83900.0,0.26690989]
[1743181832765,0.13792,83903.0,83902.0,0.26483185]
[1743181833011,0.02416577,83909.0,83908.0,0.238356]
[1743181833211,0.16208577,83909.0,83908.0,0.238356]
[1743181833410,0.14437001,83909.0,83908.0,0.250273]
[1743181834233,0.14437001,83909.0,83908.0,0.26481385]
[1743181834431,0.00645001,83909.0,83908.0,0.38971385]
[1743181834632,0.13792,83909.0,83908.0,0.38971385]
[1743181835273,0.0003376,83923.0,83922.0,0.250231]
[1743181835467,0.1382576,83923.0,83922.0,0.26477185]
[1743181836021,0.1382576,83923.0,83922.0,0.30060185]
[1743181836704,0.1382576,83923.0,83922.0,0.30160185]
[1743181836907,0.1382576,83923.0,83922.0,0.30060185]
[1743181837117,0.1382576,83923.0,83922.0,0.04962998]
[1743181837118,0.1382176,83923.0,83922.0,0.04962998]
[1743181837318,0.1382176,83923.0,83922.0,0.26403098]
[1743181837542,0.14472847,83923.0,83922.0,0.26403098]
[1743181838195,0.14472847,83923.0,83922.0,0.26503098]
[1743181838358,0.1382176,83923.0,83922.0,0.26703098]
[1743181838917,0.1382176,83923.0,83922.0,0.26603098]
[1743181839221,0.1382176,83923.0,83922.0,0.26803098]
[1743181839738,0.1382176,83923.0,83922.0,0.28257183]
[1743181842148,0.1382176,83923.0,83922.0,0.27065683]
[1743181842408,0.0003376,83923.0,83922.0,0.28257183]
[1743181842611,0.14472847,83923.0,83922.0,0.28257183]
[1743181842783,0.1382176,83923.0,83922.0,0.28257183]
[1743181843989,0.1381776,83923.0,83922.0,0.28257183]
[1743181844512,0.1381776,83923.0,83922.0,0.254231]
[1743181845351,0.1381776,83923.0,83922.0,0.242316]
[1743181845751,0.14468847,83923.0,83922.0,0.242316]
[1743181845953,0.38300147,83923.0,83922.0,0.004]
[1743181846355,0.48326142,83923.0,83922.0,0.004]
[1743181846919,0.14468847,83923.0,83922.0,0.004]
[1743181847048,0.14468847,83923.0,83922.0,0.254231]
[1743181847455,0.14468847,83923.0,83922.0,0.252231]
[1743181847852,0.14468847,83923.0,83922.0,0.253231]
[1743181848042,0.14468847,83923.0,83922.0,0.251231]
[1743181848259,0.14468847,83923.0,83922.0,0.26677185]
[1743181848469,0.00684847,83923.0,83922.0,0.43042949]
[1743181848746,0.1381776,83923.0,83922.0,0.43042949]
[1743181849429,0.1381776,83923.0,83922.0,0.42942949]
[1743181849660,0.1381776,83923.0,83922.0,0.42842949]
[1743181849876,0.1391776,83923.0,83922.0,0.43242949]
[1743181850148,0.1391776,83923.0,83922.0,0.73242949]
[1743181850338,0.1391776,83923.0,83922.0,0.74154413]
[1743181851181,0.1381776,83923.0,83922.0,0.73754413]
[1743181851351,0.1391776,83923.0,83922.0,0.74154413]
[1743181851551,0.1391776,83923.0,83922.0,0.74454413]
[1743181851934,0.1391776,83923.0,83922.0,0.74154413]
[1743181852139,0.1391776,83923.0,83922.0,0.74754413]
[1743181852881,0.0013376,83923.0,83922.0,0.74754413]
[1743181853278,0.000338,83947.0,83946.0,0.25016]
[1743181853457,0.00038246,83947.0,83946.0,0.25016]
[1743181853657,0.00038246,83947.0,83946.0,0.26470085]
[1743181854597,0.14483019,83947.0,83946.0,0.26570085]
[1743181854806,0.13822246,83947.0,83946.0,0.26670085]
[1743181855143,0.14483019,83947.0,83946.0,0.26670085]
[1743181855345,0.13822246,83947.0,83946.0,0.26670085]
[1743181855549,0.14483019,83947.0,83946.0,0.26670085]
[1743181856601,0.13822246,83947.0,83946.0,0.26670085]
[1743181856806,0.00038246,83947.0,83946.0,0.26670085]
[1743181857004,0.13818246,83947.0,83946.0,0.26670085]
[1743181857998,0.019136,83950.0,83949.0,0.25015]
[1743181858469,0.02580352,83950.0,83949.0,0.26469085]
[1743181859301,0.16360352,83950.0,83949.0,0.26469085]
[1743181859679,0.156936,83950.0,83949.0,0.26469085]
[1743181860526,0.019136,83950.0,83949.0,0.26469085]
[1743181860726,0.156936,83950.0,83949.0,0.26469085]
[1743181862190,0.019136,83950.0,83949.0,0.26769085]
[1743181862382,0.156936,83950.0,83949.0,0.34909085]
[1743181862582,0.019136,83950.0,83949.0,0.26469085]
[1743181862782,0.156936,83950.0,83949.0,0.26669085]
[1743181862983,0.156936,83950.0,83949.0,0.26869085]
[1743181863616,0.156936,83950.0,83949.0,0.68294849]
[1743181864025,0.156936,83950.0,83949.0,0.68094849]
[1743181864252,0.156936,83950.0,83949.0,0.56469085]
[1743181864490,0.156936,83950.0,83949.0,0.56869085]
[1743181864708,0.156936,83950.0,83949.0,0.56969085]
[1743181865134,0.156936,83950.0,83949.0,0.57469085]
[1743181867240,0.156896,83950.0,83949.0,0.57469085]
[1743181868200,0.137761,83950.0,83949.0,0.68894849]
[1743181868571,0.0186894,83972.0,83971.0,0.250085]
[1743181868784,0.09945579,83978.0,83976.0,0.238161]
[1743181869019,0.33765825,83978.0,83975.0,0.238163]
[1743181869377,0.238162,83977.0,83973.0,0.250076]
[1743181869576,0.238169,83974.0,83971.0,0.238176]
[1743181869834,0.011908,83975.0,83968.0,0.01454085]
[1743181869835,0.13776,83973.0,83968.0,0.01454085]
[1743181870036,0.238174,83972.0,83968.0,0.25272585]
[1743181870212,0.238177,83971.0,83968.0,0.25272585]
[1743181870417,0.011909,83970.0,83963.0,0.2382]
[1743181870597,0.238185,83969.0,83966.0,0.23819]
[1743181870797,0.23818,83971.0,83967.0,0.238187]
[1743181870997,0.23818,83971.0,83965.0,0.250103]
[1743181870998,0.375934,83973.0,83968.0,0.011909]
[1743181871225,0.375934,83973.0,83969.0,0.011909]
[1743181871741,0.375934,83973.0,83969.0,0.238183]
[1743181872043,0.01868717,83977.0,83972.0,0.011908]
[1743181872249,0.13776,83976.0,83973.0,0.23817]
[1743181872446,0.238169,83974.0,83971.0,0.238175]
[1743181872620,0.238172,83973.0,83969.0,0.250091]
[1743181873028,0.25008,83973.0,83966.0,0.238189]
[1743181873206,0.011909,83968.0,83963.0,0.01191]
[1743181873405,0.011909,83968.0,83963.0,0.01454085]
[1743181873406,0.238188,83967.0,83963.0,0.01454085]
[1743181873635,0.238202,83964.0,83959.0,0.250121]
[1743181873861,0.058609,83965.0,83957.0,0.238215]
[1743181874065,0.011909,83964.0,83958.0,0.01191]
[1743181874270,0.058609,83965.0,83959.0,0.01191]
[1743181874271,0.296803,83965.0,83959.0,0.01191]
[1743181874479,0.296803,83965.0,83963.0,0.001]
[1743181874705,0.296803,83965.0,83962.0,0.238202]
[1743181874851,0.238197,83964.0,83961.0,0.238205]
[1743181875475,0.0467,83965.0,83963.0,0.2402]
[1743181875730,0.0822,83966.0,83965.0,0.26464385]
[1743181875873,0.0824,83971.0,83969.0,0.011909]
[1743181876080,0.0824,83971.0,83970.0,0.250089]
[1743181876339,0.0824,83971.0,83969.0,0.250092]
[1743181876661,0.23818,83970.0,83966.0,0.25273085]
[1743181876813,0.3759,83970.0,83966.0,0.25273085]
[1743181877007,0.00619564,83969.0,83966.0,0.25273085]
[1743181877249,0.238194,83965.0,83963.0,0.004]
[1743181877462,0.238194,83965.0,83963.0,0.002]
[1743181877657,0.238194,83965.0,83961.0,0.238203]
[1743181877883,0.00619564,83964.0,83961.0,0.240203]
[1743181878045,0.00619564,83964.0,83962.0,0.238202]
[1743181878237,0.00619564,83964.0,83961.0,0.002]
[1743181878446,0.238202,83962.0,83961.0,0.002]
[1743181878662,0.299712,83962.0,83961.0,0.002]
[1743181878978,0.315935,83951.0,83944.0,0.238253]
[1743181879197,0.387868,83950.0,83945.0,0.23825]
[1743181879392,0.387868,83950.0,83949.0,0.0120798]
[1743181879393,0.1438961,83950.0,83949.0,0.0120798]
[1743181879596,0.1438961,83950.0,83949.0,0.26485965]
[1743181879928,0.3821331,83950.0,83949.0,0.0001688]
[1743181880212,0.3940441,83950.0,83949.0,0.0001688]
[1743181880968,0.4405441,83950.0,83949.0,0.0001688]
[1743181881223,0.63360174,83950.0,83949.0,0.0031688]
[1743181881396,0.64720631,83950.0,83949.0,0.0051688]
[1743181881811,0.94720631,83950.0,83949.0,0.0051688]
[1743181882031,0.94720631,83950.0,83949.0,0.0021688]
[1743181882245,0.94720631,83950.0,83949.0,0.0001688]
[1743181882630,0.83294867,83950.0,83949.0,0.0001688]
[1743181883512,0.84184746,83950.0,83949.0,0.0001688]
[1743181883917,0.86054275,83950.0,83949.0,0.0001688]
[1743181884148,0.84188746,83950.0,83949.0,0.0001688]
[1743181884348,0.84388746,83950.0,83949.0,0.0001688]
[1743181884718,0.70412746,83950.0,83949.0,0.0001688]
[1743181884921,0.69922867,83950.0,83949.0,0.0001688]
[1743181885121,0.8233841,83950.0,83949.0,0.0001688]
[1743181885357,0.6876241,83950.0,83949.0,0.0001688]
[1743181885548,0.8253841,83950.0,83949.0,0.0001688]
[1743181886153,0.8233841,83950.0,83949.0,0.0001688]
[1743181886908,0.3737131,83950.0,83949.0,0.0001688]
[1743181887125,0.5193841,83950.0,83949.0,0.0001688]
[1743181887546,0.5213841,83950.0,83949.0,0.0001688]
[1743181887671,0.63764174,83950.0,83949.0,0.0001688]
[1743181888368,0.5233841,83950.0,83949.0,0.0001688]
[1743181891123,0.8233841,83950.0,83949.0,0.0001688]
[1743181892621,1.0664949,83950.0,83949.0,0.0001688]
[1743181893027,0.8324949,83950.0,83949.0,0.0001688]
[1743181893738,0.85119073,83950.0,83949.0,0.0001688]
[1743181894062,1.19944837,83950.0,83949.0,8e-07]
[1743181894894,1.20444837,83950.0,83949.0,8e-07]
[1743181895222,1.20444837,83950.0,83914.0,0.0001688]
[1743181895223,0.350252,83915.0,83914.0,0.0001688]
[1743181895426,1.66898988,83915.0,83914.0,0.00061225]
[1743181895632,1.67499519,83915.0,83914.0,0.00061225]
[1743181898375,1.69857478,83915.0,83914.0,0.00061225]
[1743181898810,1.81283242,83915.0,83914.0,0.00061225]
[1743181899229,1.69857478,83915.0,83914.0,0.00061225]
[1743181902322,1.99857478,83915.0,83914.0,0.00061225]
[1743181902520,2.12587478,83915.0,83914.0,2.5e-07]
[1743181903048,0.825673,83908.0,83907.0,8e-07]
[1743181903245,1.1684586,83908.0,83907.0,8e-07]
[1743181903426,1.17438148,83908.0,83907.0,8e-07]
[1743181904685,1.17938148,83908.0,83907.0,8e-07]
[1743181906025,1.17938148,83908.0,83900.0,7.204e-05]
[1743181906026,0.550312,83895.0,83894.0,6.4e-07]
[1743181906174,2.07386763,83895.0,83894.0,6.4e-07]
[1743181906374,2.11916763,83895.0,83894.0,6.4e-07]
[1743181906592,2.12500924,83895.0,83894.0,6.4e-07]
[1743181906806,2.35900924,83895.0,83894.0,6.4e-07]
[1743181907000,2.12500924,83895.0,83894.0,6.4e-07]
[1743181907205,2.13387653,83895.0,83894.0,6.4e-07]
[1743181907566,2.13887653,83895.0,83894.0,6.4e-07]
[1743181909722,0.65033,83889.0,83888.0,2.8e-07]
[1743181909919,1.36829746,83889.0,83888.0,2.8e-07]
[1743181910122,1.37402689,83889.0,83888.0,2.8e-07]
[1743181910323,1.60802689,83889.0,83888.0,2.8e-07]
[1743181910505,1.65782689,83889.0,83888.0,2.8e-07]
[1743181910950,1.6662712,83889.0,83888.0,2.8e-07]
[1743181911159,1.6692712,83889.0,83888.0,2.8e-07]
[1743181911578,1.6692712,83889.0,83879.0,0.0001689]
[1743181911579,0.550369,83876.0,83875.0,1.8e-07]
[1743181911603,0.500411,83862.0,83850.0,0.00100069]
[1743181911838,2.30965424,83862.0,83850.0,0.00100069]
[1743181912059,2.31533742,83862.0,83850.0,0.00100069]
[1743181912269,2.18964117,83862.0,83850.0,0.00100069]
[1743181912516,2.32744117,83862.0,83850.0,0.00100069]
[1743181912714,2.34615291,83862.0,83850.0,0.00100069]
[1743181912924,2.43481131,83862.0,83850.0,0.00100069]